bitfinex/quotes_BTCUSD_20251209
["timestamp","ask_amount","ask_price","bid_price","bid_amount"]
[1765242206828,0.01948,90389.0,90388.0,0.00629784]
[1765242208505,0.01948,90389.0,90388.0,0.27584614]
[1765242208506,0.002,90389.0,90388.0,0.27584614]
[1765242208652,0.002,90389.0,90388.0,0.33937477]
[1765242208855,0.01948,90389.0,90388.0,0.06982647]
[1765242209057,0.01948,90389.0,90388.0,0.22756614]
[1765242209268,0.01748,90389.0,90388.0,0.22156614]
[1765242209468,0.01748,90389.0,90388.0,0.23100614]
[1765242209670,0.01948,90389.0,90388.0,0.01773784]
[1765242210292,0.01948,90389.0,90388.0,0.03279784]
[1765242210493,0.01948,90389.0,90388.0,0.11865383]
[1765242211078,0.01948,90389.0,90388.0,0.10359383]
[1765242211740,0.01948,90389.0,90388.0,0.32486213]
[1765242213330,0.01948,90389.0,90388.0,0.33992213]
[1765242214132,0.01948,90389.0,90388.0,0.36370213]
[1765242214552,0.01948,90389.0,90388.0,0.33992213]
[1765242214929,0.01948,90389.0,90388.0,0.36370213]
[1765242215658,0.01948,90389.0,90388.0,0.33992213]
[1765242216252,0.02970906,90389.0,90388.0,0.33992213]
[1765242216688,0.02970906,90389.0,90388.0,0.36370213]
[1765242216871,0.01222906,90389.0,90388.0,0.36370213]
[1765242217051,0.02970906,90389.0,90388.0,0.36370213]
[1765242217253,0.01948,90389.0,90388.0,0.36370213]
[1765242217489,0.01948,90389.0,90388.0,0.32486213]
[1765242217847,0.01948,90389.0,90388.0,0.33992213]
[1765242218058,0.01948,90389.0,90388.0,0.36370213]
[1765242219108,0.01948,90389.0,90388.0,0.33992213]
[1765242219266,0.01948,90389.0,90388.0,0.36370213]
[1765242219474,0.01948,90389.0,90388.0,0.33992213]
[1765242220861,0.01948,90389.0,90388.0,0.36370213]
[1765242221068,0.01948,90389.0,90388.0,0.33992213]
[1765242221202,0.01948,90389.0,90388.0,0.36370213]
[1765242222002,0.01948,90389.0,90388.0,0.31542213]
[1765242222276,0.05962,90389.0,90388.0,0.00829784]
[1765242222474,0.06984906,90389.0,90388.0,0.00829784]
[1765242223600,0.07109193,90389.0,90388.0,0.00829784]
[1765242223800,0.08109011,90389.0,90388.0,0.00829784]
[1765242224389,0.08109011,90389.0,90376.0,0.00745804]
[1765242224390,0.54428544,90381.0,90376.0,0.00745804]
[1765242224620,0.60471737,90381.0,90376.0,0.00745804]
[1765242224831,0.63834472,90381.0,90380.0,0.00043831]
[1765242225043,0.61471555,90381.0,90380.0,0.00043831]
[1765242225585,0.61471555,90381.0,90380.0,0.00082605]
[1765242225793,0.64822851,90381.0,90380.0,0.00182605]
[1765242226272,0.61871555,90381.0,90380.0,0.00182605]
[1765242226792,0.72719483,90381.0,90380.0,0.00182605]
[1765242226999,0.750824,90381.0,90380.0,0.00182605]
[1765242227208,0.67182989,90381.0,90380.0,0.00182605]
[1765242227412,0.64820072,90381.0,90380.0,0.00182605]
[1765242227610,0.61871555,90381.0,90380.0,0.00182605]
[1765242227806,0.64820164,90381.0,90380.0,0.00182605]
[1765242228344,0.61871555,90381.0,90380.0,0.00182605]
[1765242228551,0.78971782,90381.0,90380.0,0.00182605]
[1765242228728,0.81334699,90381.0,90380.0,0.00182605]
[1765242229095,0.64234472,90381.0,90380.0,0.00182605]
[1765242229227,0.73799303,90381.0,90380.0,0.00182605]
[1765242229470,0.72234771,90381.0,90380.0,0.00182605]
[1765242230314,0.63340641,90377.0,90376.0,0.00208589]
[1765242230526,0.77610396,90377.0,90376.0,0.00208589]
[1765242230724,0.81721313,90377.0,90376.0,0.00208589]
[1765242230925,0.64621086,90377.0,90376.0,0.00208589]
[1765242231169,0.62258169,90377.0,90376.0,0.00208589]
[1765242231393,0.68510468,90377.0,90376.0,0.00208589]
[1765242231537,0.69210468,90377.0,90376.0,0.00408589]
[1765242231739,0.80058396,90377.0,90376.0,0.00408589]
[1765242231938,0.82421313,90377.0,90376.0,0.00408589]
[1765242232348,0.71573385,90377.0,90376.0,0.00408589]
[1765242233366,0.68510468,90377.0,90376.0,0.00208589]
[1765242233726,0.63673086,90377.0,90376.0,0.00408589]
[1765242233930,0.63058169,90377.0,90376.0,0.00408589]
[1765242234597,0.66382071,90377.0,90376.0,0.00408589]
[1765242234798,0.64634071,90377.0,90376.0,0.00408589]
[1765242234944,0.66386071,90377.0,90376.0,0.00408589]
[1765242235144,0.64634071,90377.0,90376.0,0.00408589]
[1765242235365,0.66382071,90377.0,90376.0,0.00408589]
[1765242235582,0.64258351,90377.0,90376.0,0.00408589]
[1765242235783,0.6425617,90377.0,90376.0,0.00408589]
[1765242237635,0.6323625,90377.0,90376.0,0.00408589]
[1765242238794,0.2472025,90377.0,90376.0,0.00408589]
[1765242240172,0.2637925,90377.0,90376.0,0.00408589]
[1765242240573,0.2462725,90377.0,90376.0,0.00408589]
[1765242240774,0.2637925,90377.0,90376.0,0.00408589]
[1765242241073,0.3683483,90377.0,90376.0,0.00408589]
[1765242241279,0.62099068,90377.0,90376.0,0.00408589]
[1765242242187,0.69814211,90377.0,90376.0,0.00408589]
[1765242242538,0.23249891,90323.0,90320.0,4.004e-05]
[1765242242674,0.02092,90321.0,90320.0,4.004e-05]
[1765242242887,0.04512,90321.0,90320.0,4.004e-05]
[1765242243682,0.26473922,90321.0,90320.0,4.004e-05]
[1765242243886,0.28725922,90321.0,90320.0,0.00204004]
[1765242244093,0.28225922,90321.0,90320.0,4.004e-05]
[1765242244327,0.30645922,90321.0,90320.0,4.004e-05]
[1765242244537,0.39302678,90321.0,90320.0,0.00200004]
[1765242244734,0.40302496,90321.0,90320.0,0.00200004]
[1765242244947,0.39302678,90321.0,90320.0,0.00200004]
[1765242245138,0.41502678,90321.0,90320.0,0.00200004]
[1765242245762,0.40802678,90321.0,90320.0,4e-08]
[1765242245985,0.41102678,90321.0,90320.0,4e-08]
[1765242246121,0.40963965,90321.0,90320.0,4e-08]
[1765242246321,0.37011965,90321.0,90320.0,4e-08]
[1765242246544,0.36743965,90321.0,90320.0,4e-08]
[1765242246745,0.35093965,90321.0,90320.0,4e-08]
[1765242246946,0.02793965,90321.0,90320.0,4e-08]
[1765242247154,0.00438678,90321.0,90320.0,0.01611004]
[1765242247436,0.00038678,90321.0,90320.0,0.04038004]
[1765242247817,0.00238678,90321.0,90320.0,0.04038004]
[1765242248021,0.00238678,90321.0,90320.0,0.04663638]
[1765242248148,0.00238678,90321.0,90320.0,0.70470703]
[1765242248350,0.00238678,90321.0,90320.0,0.63993021]
[1765242248547,0.00238678,90321.0,90320.0,0.13367249]
[1765242248775,0.00238678,90321.0,90320.0,0.22887355]
[1765242248977,0.00038678,90321.0,90320.0,0.24460312]
[1765242249391,0.00338678,90321.0,90320.0,0.24460312]
[1765242249610,0.01106721,90357.0,90350.0,0.01106806]
[1765242249808,0.01106733,90356.0,90350.0,0.01118406]
[1765242250144,0.02858733,90356.0,90352.0,0.01106782]
[1765242250351,0.01206683,90360.0,90355.0,0.01611]
[1765242250352,0.01106684,90360.0,90355.0,0.01611]
[1765242250489,0.01106647,90363.0,90359.0,0.02717696]
[1765242250825,0.02858659,90362.0,90359.0,0.01611]
[1765242251001,0.01106635,90364.0,90359.0,0.24851607]
[1765242251184,0.01752,90363.0,90360.0,0.05162673]
[1765242251383,0.01752,90362.0,90360.0,0.08696357]
[1765242251598,0.01106635,90364.0,90360.0,0.06269357]
[1765242251785,0.01752,90363.0,90361.0,0.01611]
[1765242251987,0.01752,90362.0,90361.0,0.01611]
[1765242252182,0.23238967,90366.0,90361.0,0.05076544]
[1765242252622,0.01106708,90358.0,90351.0,0.12287818]
[1765242252823,0.00099999,90360.0,90354.0,0.01106757]
[1765242253223,0.01106696,90359.0,90356.0,0.01106733]
[1765242253427,0.01106684,90360.0,90357.0,0.01106721]
[1765242253798,0.01106672,90361.0,90358.0,0.01106708]
[1765242254001,0.002,90360.0,90358.0,0.07922901]
[1765242254286,0.002,90360.0,90358.0,0.06816193]
[1765242254524,0.002,90360.0,90359.0,0.03753]
[1765242254973,0.002,90360.0,90359.0,0.01502]
[1765242254974,0.01952,90360.0,90359.0,0.01502]
[1765242255355,0.002,90360.0,90359.0,0.03753]
[1765242255531,0.002,90360.0,90359.0,0.12721382]
[1765242255916,0.01752,90368.0,90367.0,0.22131972]
[1765242256115,0.01752,90368.0,90367.0,0.25884972]
[1765242256716,0.01306437,90380.0,90377.0,0.01106476]
[1765242256717,0.01106439,90380.0,90377.0,0.01106476]
[1765242256917,0.01106414,90382.0,90379.0,0.03847451]
[1765242257101,0.01752,90381.0,90380.0,0.01502]
[1765242257309,0.01752,90381.0,90380.0,0.02251]
[1765242257524,0.01752,90381.0,90380.0,0.25881789]
[1765242257742,0.0110639,90384.0,90379.0,0.01239]
[1765242257743,0.22128789,90380.0,90379.0,0.01239]
[1765242257944,0.002,90380.0,90379.0,0.01239]
[1765242258142,0.002,90380.0,90379.0,0.012506]
[1765242258537,0.002,90380.0,90379.0,0.06133604]
[1765242259065,0.22128789,90380.0,90379.0,0.000116]
[1765242259651,0.23234158,90385.0,90379.0,0.000116]
[1765242259652,0.01106304,90391.0,90387.0,0.01106353]
[1765242259864,0.01106304,90391.0,90387.0,0.2323338]
[1765242259865,0.01752,90390.0,90387.0,0.2323338]
[1765242260041,0.01752,90390.0,90388.0,0.03357341]
[1765242260240,0.01752,90390.0,90382.0,0.01106414]
[1765242260241,0.01106329,90389.0,90386.0,0.01106366]
[1765242260444,0.01752,90390.0,90386.0,0.01106366]
[1765242260672,0.01752,90390.0,90387.0,0.01106353]
[1765242261043,0.03058317,90390.0,90386.0,0.01106366]
[1765242261244,0.03058317,90390.0,90387.0,0.01106353]
[1765242261446,0.002,90390.0,90389.0,0.01502]
[1765242261756,0.01952,90390.0,90389.0,0.01502]
[1765242261955,0.002,90390.0,90389.0,0.03753]
[1765242262381,0.01952,90390.0,90389.0,0.03753]
[1765242262579,0.002,90390.0,90389.0,0.11817532]
[1765242262785,0.01752,90392.0,90389.0,0.11817532]
[1765242262786,0.01752,90392.0,90390.0,0.22126341]
[1765242262984,0.01752,90392.0,90391.0,0.01502]
[1765242263184,0.01752,90392.0,90391.0,0.03753]
[1765242264408,0.01952,90392.0,90391.0,0.03753]
[1765242264586,0.01952,90392.0,90391.0,0.12806671]
[1765242265186,0.01952,90392.0,90391.0,0.10555671]
[1765242265389,0.01952,90392.0,90391.0,0.12806671]
[1765242266172,0.002,90392.0,90391.0,0.12806671]
[1765242267080,0.01952,90392.0,90391.0,0.09053671]
[1765242267308,0.05679,90392.0,90390.0,0.22126303]
[1765242267627,0.00099999,90390.0,90382.0,0.01106414]
[1765242267801,0.00099999,90390.0,90384.0,0.0110639]
[1765242267802,0.23233155,90389.0,90384.0,0.0110639]
[1765242268327,0.23233155,90389.0,90385.0,0.01106378]
[1765242269085,0.00099999,90390.0,90387.0,0.01106353]
[1765242269618,0.00099999,90390.0,90388.0,0.2212683]
[1765242269786,0.00099999,90390.0,90389.0,0.06970105]
[1765242269993,0.00099999,90390.0,90387.0,0.01106353]
[1765242270417,0.00099999,90390.0,90388.0,0.01239]
[1765242270614,0.00399999,90390.0,90388.0,0.01239]
[1765242270818,0.003,90390.0,90385.0,0.23233942]
[1765242271033,0.003,90390.0,90387.0,0.23233428]
[1765242271803,0.003,90390.0,90388.0,0.23365607]
[1765242272003,0.01913287,90392.0,90390.0,0.22126341]
[1765242272635,0.01913287,90392.0,90391.0,0.01502]
[1765242273588,0.02113287,90392.0,90391.0,0.01502]
[1765242273791,0.01913287,90392.0,90391.0,0.10277177]
[1765242274279,0.01913287,90392.0,90391.0,0.12528177]
[1765242274447,0.01913287,90392.0,90391.0,0.10277177]
[1765242274644,0.01752,90392.0,90391.0,0.10277177]
[1765242274844,0.01106194,90400.0,90395.0,0.23231264]
[1765242275068,0.22123869,90401.0,90395.0,0.23231264]
[1765242275069,0.0110617,90402.0,90399.0,0.01133]
[1765242275272,0.01106109,90407.0,90401.0,0.02635]
[1765242275441,0.01206071,90410.0,90407.0,0.01106109]
[1765242275641,0.02699,90408.0,90402.0,0.22123404]
[1765242275956,0.01752,90407.0,90403.0,0.02251]
[1765242276157,0.01752,90407.0,90404.0,0.08177534]
[1765242276353,0.01752,90407.0,90406.0,0.01502]
[1765242276554,0.01752,90407.0,90406.0,0.015136]
[1765242276754,0.01752,90407.0,90406.0,0.000116]
[1765242278401,0.02252,90407.0,90406.0,0.000116]
[1765242278973,0.005,90407.0,90406.0,0.000116]
[1765242279174,0.02252,90407.0,90406.0,0.000116]
[1765242280054,0.02252,90407.0,90406.0,0.08361533]
[1765242280717,0.02252,90407.0,90406.0,0.037646]
[1765242281851,0.01752,90407.0,90406.0,0.037646]
[1765242282100,0.01952,90407.0,90406.0,0.037646]
[1765242283476,0.01952,90407.0,90406.0,0.03448398]
[1765242283887,0.01952,90407.0,90406.0,0.11732075]
[1765242284253,0.01952,90407.0,90406.0,0.21028955]
[1765242285500,0.01952,90407.0,90406.0,0.17580557]
[1765242285735,0.01952,90407.0,90406.0,0.0929688]
[1765242285950,0.01952,90407.0,90397.0,0.02425]
[1765242285951,0.2323163,90394.0,90391.0,0.01133]
[1765242286168,0.01106292,90392.0,90387.0,0.01106353]
[1765242286376,0.01106378,90385.0,90381.0,0.23234971]
[1765242286527,0.01106366,90386.0,90382.0,0.09309771]
[1765242286708,0.01106366,90386.0,90383.0,0.01106402]
[1765242286897,0.01106329,90389.0,90384.0,0.232342]
[1765242287109,0.00199998,90390.0,90386.0,0.01106366]
[1765242287346,0.00199998,90390.0,90387.0,0.01106353]
[1765242287830,0.00199998,90390.0,90388.0,0.01239]
[1765242288332,0.00499999,90390.0,90388.0,0.01239]
[1765242288545,0.22126586,90389.0,90388.0,0.01239]
[1765242288747,0.01752,90389.0,90388.0,0.01239]
[1765242289578,0.01752,90389.0,90388.0,0.02887]
[1765242290156,0.01752,90389.0,90388.0,0.05312]
[1765242290359,0.01752,90389.0,90388.0,0.13595677]
[1765242290604,0.01752,90389.0,90388.0,0.23477912]
[1765242290829,0.01752,90392.0,90391.0,0.01106304]
[1765242290999,0.01752,90392.0,90391.0,0.232324]
[1765242291178,0.01752,90392.0,90391.0,0.284384]
[1765242291864,0.01952,90392.0,90391.0,0.285384]
[1765242292072,0.01952,90392.0,90391.0,0.33171162]
[1765242295252,0.002,90392.0,90391.0,0.33171162]
[1765242296220,0.002,90392.0,90391.0,0.35369753]
[1765242298368,0.00011615,90394.0,90393.0,0.24324198]
[1765242298609,0.00011615,90394.0,90393.0,0.25972198]
[1765242298891,0.00011615,90394.0,90392.0,0.22125634]
[1765242299036,0.00011615,90394.0,90393.0,0.01648]
[1765242299832,0.01763615,90394.0,90393.0,0.01648]
[1765242299976,0.01763615,90394.0,90391.0,0.243654]
[1765242300177,0.01763615,90394.0,90393.0,0.23773607]
[1765242300383,0.01763615,90394.0,90393.0,0.23873607]
[1765242300384,0.02563615,90394.0,90393.0,0.23873607]
[1765242300698,0.00811615,90394.0,90393.0,0.91126306]
[1765242300935,0.00011615,90394.0,90393.0,1.23326306]
[1765242301105,0.00011615,90394.0,90393.0,1.24929334]
[1765242301306,0.00211615,90394.0,90393.0,1.24929334]
[1765242301499,0.00011615,90394.0,90393.0,1.25729152]
[1765242301669,0.00099999,90420.0,90419.0,0.22119244]
[1765242301868,0.01790774,90420.0,90419.0,0.23726244]
[1765242302224,0.01790774,90420.0,90419.0,0.28614823]
[1765242302785,0.01790774,90420.0,90418.0,0.00828]
[1765242302971,0.22119489,90418.0,90411.0,0.0110606]
[1765242303173,0.01106011,90415.0,90412.0,0.01106047]
[1765242303372,0.01105962,90419.0,90418.0,0.01607]
[1765242303573,0.0200601,90420.0,90416.0,0.01105998]
[1765242303826,0.01752,90419.0,90417.0,0.06281772]
[1765242304192,0.22119489,90418.0,90417.0,0.05175786]
[1765242304529,0.01105986,90417.0,90413.0,0.01106035]
[1765242304849,0.01105974,90418.0,90414.0,0.01106023]
[1765242305010,0.01752,90419.0,90415.0,0.23226234]
[1765242305197,0.02252,90419.0,90417.0,0.001]
[1765242306529,0.01752,90419.0,90417.0,0.22119734]
[1765242306709,0.01752,90419.0,90418.0,0.07189113]
[1765242307115,0.23871244,90419.0,90418.0,0.07189113]
[1765242307316,0.02252,90419.0,90418.0,0.07189113]
[1765242307685,0.01752,90419.0,90418.0,0.07189113]
[1765242307889,0.01752,90419.0,90418.0,0.07289113]
[1765242308089,0.02252,90419.0,90418.0,0.07289113]
[1765242308590,0.02252,90419.0,90418.0,0.29408602]
[1765242308991,0.02252,90419.0,90418.0,0.31015602]
[1765242309187,0.02252,90419.0,90418.0,0.33279602]
[1765242312195,0.005,90419.0,90418.0,0.35478193]
[1765242312574,0.00038774,90420.0,90419.0,0.02198591]
[1765242312780,0.00038774,90420.0,90419.0,0.67733634]
[1765242313141,0.00038774,90420.0,90419.0,0.57340334]
[1765242313346,0.00038774,90420.0,90419.0,0.63592633]
[1765242313966,0.00338774,90420.0,90419.0,0.6259386]
[1765242314289,0.00038774,90420.0,90419.0,0.6239386]
[1765242314625,0.00238774,90420.0,90419.0,0.6249386]
[1765242315772,0.00038774,90420.0,90419.0,0.6239386]
[1765242315970,0.00038774,90420.0,90419.0,0.6259386]
[1765242316184,0.00938774,90420.0,90419.0,0.6259386]
[1765242319037,0.00251895,90441.0,90440.0,0.22114108]
[1765242319405,0.00263525,90441.0,90440.0,0.23773108]
[1765242319627,0.00263525,90441.0,90440.0,0.26175108]
[1765242320275,0.00863525,90441.0,90440.0,2.34825998]
[1765242320463,0.03908684,90470.0,90469.0,0.2210702]
[1765242320464,0.01792,90470.0,90469.0,0.2210702]
[1765242320593,0.01803623,90470.0,90469.0,0.26166863]
[1765242320795,0.01803623,90470.0,90469.0,0.30227863]
[1765242321001,0.01889891,90470.0,90469.0,0.30227863]
[1765242322556,0.01889891,90470.0,90469.0,0.05718843]
[1765242322927,0.01889891,90470.0,90469.0,0.01659]
[1765242323085,0.01989891,90470.0,90469.0,0.2676802]
[1765242323358,0.01989891,90470.0,90469.0,0.04661]
[1765242323606,0.01889891,90470.0,90469.0,0.2616802]
[1765242323823,0.01989891,90470.0,90469.0,0.04461]
[1765242324063,0.01989891,90470.0,90469.0,0.1198032]
[1765242324513,0.01989891,90470.0,90469.0,0.3408734]
[1765242325880,0.01989891,90470.0,90469.0,0.0957832]
[1765242326359,0.01989891,90470.0,90469.0,0.1198032]
[1765242326589,0.01989891,90470.0,90469.0,0.0957832]
[1765242327099,0.01989891,90470.0,90469.0,0.1198032]
[1765242327452,0.01989891,90470.0,90469.0,0.3408734]
[1765242327708,0.01989891,90470.0,90469.0,0.1198032]
[1765242328019,0.01989891,90470.0,90469.0,0.0791932]
[1765242328194,0.01989891,90470.0,90469.0,0.2250702]
[1765242328399,0.01989891,90470.0,90469.0,0.2416602]
[1765242328970,0.01989891,90470.0,90469.0,0.02059]
[1765242329580,0.01989891,90470.0,90469.0,0.2416602]
[1765242331203,0.01989891,90470.0,90469.0,0.02059]
[1765242331410,0.01989891,90470.0,90469.0,0.09799399]
[1765242332614,0.01989891,90470.0,90469.0,0.02059]
[1765242332822,0.01989891,90470.0,90469.0,0.04461]
[1765242333262,0.01989891,90470.0,90469.0,0.2656802]
[1765242333642,0.00237891,90470.0,90469.0,0.3501891]
[1765242335773,0.00237891,90470.0,90469.0,0.2656802]
[1765242335972,0.00237891,90470.0,90469.0,0.36408539]
[1765242337446,0.00237891,90470.0,90469.0,0.3860713]
[1765242338151,0.00237891,90470.0,90469.0,0.36408539]
[1765242339013,0.00237891,90470.0,90469.0,0.10240519]
[1765242340073,0.00237891,90470.0,90469.0,0.11899519]
[1765242341714,0.00237891,90470.0,90469.0,0.14301519]
[1765242342752,0.00237891,90470.0,90469.0,0.14918036]
[1765242342949,0.00237891,90470.0,90469.0,0.17116627]
[1765242346068,0.00237891,90470.0,90469.0,0.14301519]
[1765242346691,0.00137891,90470.0,90469.0,0.13901519]
[1765242347065,0.00437891,90470.0,90469.0,0.13901519]
[1765242347261,0.00137891,90470.0,90469.0,0.13901519]
[1765242347697,0.00237891,90470.0,90469.0,0.14301519]
[1765242348115,0.00237891,90470.0,90469.0,0.14918036]
[1765242348436,0.00137891,90470.0,90469.0,0.14518036]
[1765242348632,0.00137891,90470.0,90469.0,0.77297126]
[1765242348781,0.00137891,90470.0,90469.0,0.77180609]
[1765242348782,0.00237891,90470.0,90469.0,0.77180609]
[1765242348978,0.00237891,90470.0,90469.0,1.09480609]
[1765242350520,0.00137891,90470.0,90469.0,1.08980609]
[1765242350952,0.00337891,90470.0,90469.0,1.08980609]
[1765242355562,1e-08,90470.0,90469.0,1.08980609]
[1765242358233,0.0004,90490.0,90487.0,0.01105131]
[1765242358434,0.0004,90490.0,90489.0,0.738397]
[1765242358672,0.0004,90490.0,90489.0,2.763257]
[1765242359004,0.00099473,90490.0,90489.0,2.763257]
[1765242359703,0.0004,90500.0,90499.0,2.2835199]
[1765242359909,0.00011621,90500.0,90499.0,2.30962808]
[1765242360064,0.0004,90510.0,90509.0,0.62910039]
[1765242360263,0.0004,90510.0,90509.0,0.61686439]
[1765242360601,0.0004,90510.0,90509.0,0.64172439]
[1765242360910,0.0004,90540.0,90537.0,0.0110452]
[1765242361119,0.00078728,90540.0,90539.0,0.24816928]
[1765242361323,0.00240015,90540.0,90539.0,0.01116]
[1765242361910,0.00388598,90540.0,90539.0,0.01116]
[1765242362113,0.00388598,90540.0,90539.0,0.05998165]
[1765242362330,0.00388598,90540.0,90539.0,0.07577165]
[1765242362493,0.00388598,90540.0,90539.0,0.05998165]
[1765242362692,0.00388598,90540.0,90539.0,0.04882165]
[1765242362914,0.01104508,90538.0,90533.0,0.02220569]
[1765242363124,0.00161287,90538.0,90534.0,0.01104557]
[1765242363438,0.00161287,90538.0,90535.0,0.01104545]
[1765242363736,0.01265795,90538.0,90535.0,0.01104545]
[1765242363937,0.01265795,90538.0,90536.0,0.03226646]
[1765242364276,0.00161287,90538.0,90537.0,0.01579]
[1765242364623,0.00178727,90540.0,90538.0,0.22090172]
[1765242364624,0.00078728,90540.0,90538.0,0.22090172]
[1765242364827,0.00078728,90540.0,90539.0,0.01579]
[1765242365044,0.00078728,90540.0,90539.0,0.03999]
[1765242365189,0.00078728,90540.0,90539.0,1.2963194]
[1765242365391,0.0004,90550.0,90549.0,2.30538378]
[1765242365614,0.0004,90560.0,90559.0,0.22085049]
[1765242365818,0.0004,90560.0,90559.0,0.2586264]
[1765242366069,0.0004,90560.0,90559.0,0.26084049]
[1765242366195,0.0004,90560.0,90559.0,0.31121899]
[1765242367162,0.0004,90560.0,90559.0,0.28701899]
[1765242367163,0.0034,90560.0,90559.0,0.28701899]
[1765242367456,0.0004,90560.0,90559.0,0.28701899]
[1765242367624,0.0004,90560.0,90559.0,0.31621899]
[1765242368009,0.0004,90560.0,90559.0,0.31121899]
[1765242368837,0.0004,90560.0,90559.0,0.28701899]
[1765242369356,0.00247971,90560.0,90559.0,0.31421899]
[1765242370232,0.00247971,90560.0,90559.0,0.39872789]
[1765242370827,0.00247971,90560.0,90559.0,0.84275289]
[1765242371065,0.00247971,90560.0,90559.0,0.56962198]
[1765242372330,0.00247971,90560.0,90559.0,0.45303299]
[1765242373907,0.00247971,90560.0,90559.0,0.52555416]
[1765242374087,0.00247971,90560.0,90559.0,0.31421899]
[1765242376277,0.00247971,90560.0,90559.0,0.29001899]
[1765242376686,0.00247971,90560.0,90559.0,0.31470899]
[1765242377841,0.00247971,90560.0,90559.0,0.59216698]
[1765242378036,0.00247971,90560.0,90559.0,0.61415289]
[1765242379411,0.00247971,90560.0,90559.0,0.22385049]
[1765242379586,0.00247971,90560.0,90559.0,0.003]
[1765242379984,0.00409258,90560.0,90559.0,0.003]
[1765242380289,0.05362076,90560.0,90559.0,0.003]
[1765242380477,0.02930076,90560.0,90559.0,0.003]
[1765242380792,0.01930258,90560.0,90559.0,0.003]
[1765242381001,0.02382958,90560.0,90559.0,0.003]
[1765242381471,0.04814958,90560.0,90559.0,0.02980311]
[1765242381641,0.02382958,90560.0,90559.0,0.02980311]
[1765242382123,0.00861958,90560.0,90559.0,0.02680311]
[1765242382562,0.00861958,90560.0,90559.0,0.02880311]
[1765242382789,0.00861958,90560.0,90559.0,0.02680311]
[1765242383021,0.00861958,90560.0,90559.0,0.02780311]
[1765242383665,0.02382958,90560.0,90559.0,0.02780311]
[1765242384286,0.00861958,90560.0,90559.0,0.02780311]
[1765242385351,0.00861958,90560.0,90559.0,0.001]
[1765242386258,0.26899763,90560.0,90559.0,0.001]
[1765242386468,0.24467763,90560.0,90559.0,0.001]
[1765242386879,0.26899763,90560.0,90559.0,0.001]
[1765242387346,0.27923085,90560.0,90559.0,0.001]
[1765242387991,0.28922903,90560.0,90559.0,0.001]
[1765242388838,0.61222903,90560.0,90559.0,0.001]
[1765242389850,0.64449549,90560.0,90559.0,0.001]
[1765242390054,0.66809952,90560.0,90559.0,0.001]
[1765242390247,0.64449549,90560.0,90559.0,0.001]
[1765242390898,0.01104472,90541.0,90538.0,0.01104508]
[1765242391081,0.23194251,90540.0,90539.0,0.05294202]
[1765242392239,0.01104472,90541.0,90539.0,0.07012202]
[1765242392392,0.23194021,90541.0,90539.0,0.001]
[1765242392603,0.00148583,90540.0,90539.0,0.001]
[1765242392964,0.00148583,90540.0,90539.0,0.23807928]
[1765242393809,0.00148583,90540.0,90539.0,0.23707928]
[1765242394126,0.00148583,90540.0,90539.0,0.31731478]
[1765242394533,0.00148583,90540.0,90539.0,0.31831478]
[1765242394736,0.00148583,90540.0,90539.0,0.30113478]
[1765242394935,0.00148583,90540.0,90539.0,0.0802355]
[1765242395159,0.00148583,90540.0,90539.0,0.0812355]
[1765242395357,0.00148583,90540.0,90539.0,0.001]
[1765242396300,0.00148583,90540.0,90539.0,0.01718]
[1765242397246,0.00148583,90540.0,90539.0,0.001]
[1765242397566,0.00148583,90540.0,90539.0,0.04187]
[1765242398986,0.00148583,90540.0,90539.0,0.001]
[1765242399324,0.00148583,90540.0,90539.0,0.05515857]
[1765242400146,0.04101583,90540.0,90539.0,0.001]
[1765242400650,0.06301583,90540.0,90539.0,0.001]
[1765242401410,0.24289928,90539.0,90538.0,0.00011616]
[1765242401619,0.29470928,90539.0,90538.0,0.00011616]
[1765242401928,0.28416359,90539.0,90538.0,0.00011616]
[1765242402600,0.6294169,90539.0,90538.0,0.00011616]
[1765242403200,0.66259512,90539.0,90538.0,0.00011616]
[1765242403851,0.66359512,90539.0,90538.0,0.00011616]
[1765242404175,0.66259512,90539.0,90538.0,0.00011616]
[1765242404606,0.66459512,90539.0,90538.0,0.00011616]
[1765242407589,0.7730744,90539.0,90538.0,0.00011616]
[1765242407767,0.46731584,90539.0,90495.0,0.0345]
[1765242407964,0.03348021,90496.0,90490.0,0.01105094]
[1765242408192,0.24953153,90498.0,90494.0,0.01105045]
[1765242408366,0.24953153,90498.0,90491.0,0.23217458]
[1765242408367,0.01105021,90496.0,90491.0,0.23217458]
[1765242408717,0.01105021,90496.0,90492.0,0.0110507]
[1765242408946,0.01105021,90496.0,90493.0,0.01105057]
[1765242409111,0.01105021,90496.0,90493.0,0.01143785]
[1765242409315,0.22100668,90495.0,90493.0,0.00038728]
[1765242409462,0.22100668,90495.0,90493.0,0.02929381]
[1765242409661,0.22100668,90495.0,90493.0,0.00038728]
[1765242409873,0.01629,90494.0,90493.0,0.00038728]
[1765242410088,0.05119818,90494.0,90493.0,0.00038728]
[1765242410289,0.05119818,90494.0,90493.0,0.00338728]
[1765242410526,0.05119818,90494.0,90493.0,0.00038728]
[1765242410946,0.05119818,90494.0,90493.0,0.00138728]
[1765242411277,0.05119818,90494.0,90493.0,0.00038728]
[1765242411494,0.37419818,90494.0,90493.0,0.00038728]
[1765242411697,0.38602068,90494.0,90493.0,0.00038728]
[1765242412127,0.37581105,90494.0,90493.0,0.00038728]
[1765242412683,0.37581105,90494.0,90493.0,0.00138728]
[1765242412884,0.37581105,90494.0,90493.0,0.00038728]
[1765242413336,0.37681105,90494.0,90493.0,0.00038728]
[1765242413966,0.41000487,90494.0,90493.0,0.00038728]
[1765242418644,0.42200669,90494.0,90493.0,0.00038728]
[1765242421656,0.54067119,90494.0,90493.0,0.00038728]
[1765242421854,0.56413817,90494.0,90493.0,0.00038728]
[1765242422077,0.5641374,90494.0,90493.0,0.00038728]
[1765242422485,0.45565812,90494.0,90493.0,0.00038728]
[1765242422685,0.22109219,90460.0,90446.0,0.01105632]
[1765242422867,0.22109219,90460.0,90459.0,0.0007468]
[1765242422868,0.28284219,90460.0,90459.0,0.0007468]
[1765242423095,0.30704219,90460.0,90459.0,0.0007468]
[1765242423298,0.34024678,90460.0,90459.0,0.0007468]
[1765242424667,0.31824678,90460.0,90459.0,0.0007468]
[1765242424869,0.32824496,90460.0,90459.0,0.0007468]
[1765242425792,0.32824496,90460.0,90459.0,0.0017468]
[1765242425994,0.32824496,90460.0,90459.0,0.0007468]
[1765242426301,0.33124496,90460.0,90459.0,0.0007468]
[1765242426420,0.65424496,90460.0,90459.0,0.0007468]
[1765242426890,0.66441602,90460.0,90459.0,0.0007468]
[1765242429140,0.97183901,90460.0,90459.0,0.0007468]
[1765242429346,0.99527119,90460.0,90459.0,0.0007468]